fUST/lending_fUST_20250201
["ID","MTS","AMOUNT","RATE_DAILY","PERIOD"]
[351154319,1738365033163,-500.0,0.00019864,2]
[351154320,1738365033172,-500.0,0.00019864,2]
[351154321,1738365033182,-500.0,0.00019864,2]
[351154322,1738365033191,-500.0,0.00019864,2]
[351154323,1738365033201,-500.0,0.00019864,2]
[351154324,1738365033210,-500.0,0.00019864,2]
[351154325,1738365033219,-500.0,0.00019864,2]
[351154326,1738365033229,-505.62343607,0.00019864,2]
[351154327,1738365033238,-500.0,0.00019864,2]
[351154328,1738365033247,-551.70410005,0.00019864,2]
[351154329,1738365033256,-500.0,0.00019864,2]
[351154330,1738365033266,-518.20977362,0.00019864,2]
[351154331,1738365033276,-500.0,0.00019864,2]
[351154332,1738365033286,-500.0,0.00019864,2]
[351154333,1738365033296,-500.0,0.00019864,2]
[351154334,1738365033305,-500.0,0.00019864,2]
[351154335,1738365033315,-500.0,0.00019864,2]
[351154336,1738365033325,-500.0,0.00019864,2]
[351154337,1738365033334,-500.0,0.00019864,2]
[351154338,1738365033345,-500.0,0.00019864,2]
[351154339,1738365033354,-500.0,0.00019864,2]
[351154340,1738365033365,-500.0,0.00019864,2]
[351154341,1738365033374,-513.32799164,0.00019864,2]
[351154342,1738365033384,-500.0,0.00019864,2]
[351154343,1738365033394,-500.0,0.00019864,2]
[351154344,1738365033404,-500.0,0.00019864,2]
[351154345,1738365033413,-500.0,0.00019864,2]
[351154346,1738365033423,-284.75674135,0.00019864,2]
[351154368,1738365038413,-215.24325865,0.00019864,2]
[351154369,1738365038423,-47.15716873,0.00019864,2]
[351154370,1738365038435,-452.84283127,0.00019864,2]
[351154371,1738365038445,-504.52773476,0.00019864,2]
[351154372,1738365038455,-349.38210175,0.00019864,2]
[351154373,1738365038476,-2102.82789825,0.00019864,2]
[351154374,1738365038486,-1517.45,0.00019864,2]
[351154375,1738365038495,-500.0,0.00019864,2]
[351154376,1738365038504,-500.0,0.00019864,2]
[351154377,1738365038514,-500.0,0.00019864,2]
[351154378,1738365038523,-501.91863737,0.00019864,2]
[351154379,1738365038532,-500.0,0.00019864,2]
[351154380,1738365038545,-500.0,0.00019864,2]
[351154381,1738365038555,-500.0,0.00019864,2]
[351154382,1738365038564,-500.0,0.00019864,2]
[351154383,1738365038574,-500.0,0.00019864,2]
[351154385,1738365038584,-500.0,0.00019864,2]
[351154387,1738365038594,-557.34060511,0.00019864,2]
[351154389,1738365038603,-2011.35730624,0.00019864,2]
[351154391,1738365038613,-500.0,0.00019864,2]
[351154392,1738365038622,-500.0,0.00019864,2]
[351154393,1738365038631,-500.0,0.00019864,2]
[351154394,1738365038641,-500.0,0.00019864,2]
[351154395,1738365038651,-500.0,0.00019864,2]
[351154396,1738365038660,-556.95,0.00019864,2]
[351154397,1738365038669,-500.0,0.00019864,2]
[351154398,1738365038679,-500.0,0.00019864,2]
[351154399,1738365038688,-333.16701566,0.00019864,2]
[351154400,1738365038700,-166.83298434,0.00019864,2]
[351154401,1738365038712,-500.0,0.00019864,2]
[351154402,1738365038722,-42.1891607,0.00019864,2]
[351154403,1738365038735,-1541.7608393,0.00019864,2]
[351154404,1738365038745,-500.0,0.00019864,2]
[351154405,1738365038756,-500.0,0.00019864,2]
[351154406,1738365038765,-500.0,0.00019864,2]
[351154407,1738365038776,-500.0,0.00019864,2]
[351154408,1738365038787,-500.0,0.00019864,2]
[351154409,1738365038798,-504.78,0.00019864,2]
[351154410,1738365038809,-500.0,0.00019864,2]
[351154411,1738365038819,-500.0,0.00019864,2]
[351154412,1738365038829,-500.0,0.00019864,2]
[351154413,1738365038839,-373.3648304,0.00019864,2]
[351154421,1738365040488,-126.6351696,0.00019864,2]
[351154422,1738365040498,-500.0,0.00019864,2]
[351154423,1738365040507,-500.0,0.00019864,2]
[351154424,1738365040517,-51.38534684,0.00019864,2]
[351154425,1738365040553,-448.61465316,0.00019864,2]
[351154426,1738365040563,-1190.6275024,0.00019864,2]
[351154427,1738365040622,-346.0403303,0.00019864,2]
[351154428,1738365040633,-222.0921673,0.00019864,2]
[351154429,1738365040643,-500.0,0.00019864,2]
[351154430,1738365040652,-323.37091834,0.00019864,2]
[351154431,1738365040661,-643.6971089,0.00019864,2]
[351154432,1738365040670,-1180.11,0.00019864,2]
[351154433,1738365040680,-500.0,0.00019864,2]
[351154434,1738365040689,-500.0,0.00019864,2]
[351154435,1738365040699,-534.13484651,0.00019864,2]
[351154436,1738365040711,-1994.32,0.00019864,2]
[351154437,1738365040721,-500.0,0.00019864,2]
[351154438,1738365040730,-150.42452954,0.00019864,2]
[351154439,1738365040740,-500.0,0.00019864,2]
[351154440,1738365040750,-500.0,0.00019864,2]
[351154441,1738365040759,-500.0,0.00019864,2]
[351154442,1738365040769,-500.0,0.00019864,2]
[351154443,1738365040778,-500.0,0.00019864,2]
[351154444,1738365040790,-500.0,0.00019864,2]
[351154445,1738365040800,-500.0,0.00019864,2]
[351154446,1738365040811,-500.0,0.00019864,2]
[351154447,1738365040820,-500.0,0.00019864,2]
[351154448,1738365040830,-500.0,0.00019864,2]
[351154449,1738365040840,-500.0,0.00019864,2]
[351154450,1738365040850,-500.0,0.00019864,2]
[351154451,1738365040860,-500.0,0.00019864,2]
[351154452,1738365040871,-500.0,0.00019864,2]
[351154453,1738365040881,-500.0,0.00019864,2]
[351154454,1738365040893,-500.0,0.00019864,2]
[351154455,1738365040904,-500.0,0.00019864,2]
[351154456,1738365040914,-529.60561039,0.00019864,2]
[351154457,1738365040924,-500.0,0.00019864,2]
[351154458,1738365040934,-500.0,0.00019864,2]
[351154459,1738365040943,-1014.41,0.00019864,2]
[351154460,1738365040953,-500.0,0.00019864,2]
[351154461,1738365040963,-876.78,0.00019864,2]
[351154462,1738365040972,-516.16,0.00019864,2]
[351154463,1738365040982,-500.0,0.00019864,2]
[351154464,1738365040991,-500.0,0.00019864,2]
[351154465,1738365041001,-500.0,0.00019864,2]
[351154466,1738365041010,-578.63,0.00019864,2]
[351154467,1738365041019,-578.63,0.00019864,2]
[351154468,1738365041028,-578.63,0.00019864,2]
[351154469,1738365041038,-500.0,0.00019864,2]
[351154470,1738365041048,-500.0,0.00019864,2]
[351154471,1738365041062,-500.0,0.00019865,2]
[351154472,1738365041073,-500.0,0.00019865,2]
[351154473,1738365041083,-500.0,0.00019865,2]
[351154474,1738365041093,-500.0,0.00019865,2]
[351154475,1738365041105,-500.0,0.00019865,2]
[351154476,1738365041115,-500.0,0.00019865,2]
[351154477,1738365041124,-500.0,0.00019865,2]
[351154478,1738365041134,-500.0,0.00019865,2]
[351154479,1738365041143,-500.0,0.00019865,2]
[351154480,1738365041152,-500.0,0.00019865,2]
[351154481,1738365041161,-500.0,0.00019865,2]
[351154482,1738365041170,-500.0,0.00019865,2]
[351154483,1738365041179,-168.16974547,0.00019865,2]
[351154484,1738365041189,-500.0,0.00019865,2]
[351154485,1738365041200,-379.17032955,0.00019865,2]
[351154486,1738365041210,-500.0,0.00019865,2]
[351154487,1738365041219,-500.58115671,0.00019865,2]
[351154488,1738365041229,-500.0,0.00019865,2]
[351154489,1738365041238,-500.0,0.00019865,2]
[351154490,1738365041248,-500.0,0.00019865,2]
[351154491,1738365041258,-500.0,0.00019865,2]
[351154492,1738365041267,-468.22641138,0.00019865,2]
[351154493,1738365041276,-500.0,0.00019865,2]
[351154494,1738365041285,-500.0,0.00019865,2]
[351154495,1738365041295,-598.26,0.00019865,2]
[351154496,1738365041306,-500.0,0.00019865,2]
[351154497,1738365041318,-500.0,0.00019865,2]
[351154498,1738365041327,-500.0,0.00019865,2]
[351154499,1738365041336,-5202.16,0.00019865,2]
[351154500,1738365041345,-500.0,0.00019865,2]
[351154501,1738365041355,-500.0,0.00019865,2]
[351154502,1738365041364,-380.75862,0.00019865,2]
[351154503,1738365041373,-500.0,0.00019865,2]
[351154504,1738365041382,-380.75862,0.00019865,2]
[351154505,1738365041392,-499.0,0.00019865,2]
[351154506,1738365041402,-500.0,0.00019865,2]
[351154507,1738365041411,-151.0,0.00019865,2]
[351154508,1738365041420,-151.0,0.00019865,2]
[351154509,1738365041429,-500.0,0.00019865,2]
[351154510,1738365041439,-151.0,0.00019865,2]
[351154511,1738365041449,-151.0,0.00019865,2]
[351154512,1738365041458,-151.0,0.00019865,2]
[351154513,1738365041467,-3967.68,0.00019865,2]
[351154514,1738365041477,-151.0,0.00019865,2]
[351154515,1738365041487,-255.444004,0.00019865,2]
[351154516,1738365041496,-363.187827,0.00019865,2]
[351154517,1738365041505,-363.187827,0.00019865,2]
[351154518,1738365041515,-151.0,0.00019865,2]
[351154519,1738365041525,-500.0,0.00019865,2]
[351154520,1738365041535,-151.0,0.00019865,2]
[351154521,1738365041544,-500.0,0.00019865,2]
[351154522,1738365041554,-151.0,0.00019865,2]
[351154523,1738365041566,-151.0,0.00019865,2]
[351154524,1738365041576,-151.0,0.00019865,2]
[351154525,1738365041585,-500.0,0.00019865,2]
[351154526,1738365041595,-343.508869,0.00019865,2]
[351154527,1738365041604,-343.508869,0.00019865,2]
[351154528,1738365041613,-151.0,0.00019865,2]
[351154529,1738365041623,-500.0,0.00019865,2]
[351154530,1738365041632,-500.0,0.00019865,2]
[351154531,1738365041642,-578.63,0.00019865,2]
[351154532,1738365041651,-578.63,0.00019865,2]
[351154533,1738365041660,-151.0,0.00019865,2]
[351154534,1738365041669,-201.428535,0.00019865,2]
[351154535,1738365041679,-500.0,0.00019866,2]
[351154536,1738365041688,-500.0,0.00019866,7]
[351154537,1738365041699,-500.0,0.00019866,2]
[351154538,1738365041709,-460.53525424,0.00019866,2]
[351154539,1738365041719,-500.0,0.00019866,2]
[351154540,1738365041729,-500.0,0.00019866,2]
[351154541,1738365041739,-500.0,0.00019866,2]
[351154542,1738365041747,-226.71394419,0.00019866,2]
[351154543,1738365041757,-500.0,0.00019866,2]
[351154544,1738365041766,-500.0,0.00019866,2]
[351154545,1738365041778,-500.0,0.00019866,2]
[351154546,1738365041788,-500.0,0.00019866,2]
[351154547,1738365041798,-151.0,0.00019866,2]
[351154548,1738365041809,-500.0,0.00019866,2]
[351154549,1738365041819,-500.0,0.00019866,2]
[351154550,1738365041828,-500.0,0.00019866,2]
[351154551,1738365041838,-500.0,0.00019866,2]
[351154552,1738365041848,-500.0,0.00019866,2]
[351154553,1738365041858,-500.0,0.00019866,2]
[351154554,1738365041869,-500.0,0.00019866,2]
[351154555,1738365041878,-151.0,0.00019866,2]
[351154556,1738365041887,-151.0,0.00019866,2]
[351154557,1738365041897,-500.0,0.00019866,2]
[351154558,1738365041907,-500.0,0.00019866,2]
[351154559,1738365041916,-151.0,0.00019866,2]
[351154560,1738365041926,-500.0,0.00019866,2]
[351154561,1738365041935,-500.0,0.00019866,2]
[351154562,1738365041945,-151.0,0.00019866,2]
[351154563,1738365041955,-151.0,0.00019866,2]
[351154564,1738365041964,-500.0,0.00019866,2]
[351154565,1738365041974,-500.0,0.00019866,2]
[351154566,1738365041983,-500.0,0.00019866,2]
[351154567,1738365041992,-500.0,0.00019866,2]
[351154568,1738365042002,-721.500882,0.00019866,2]
[351154569,1738365042012,-721.500882,0.00019866,2]
[351154570,1738365042021,-500.0,0.00019866,2]
[351154571,1738365042031,-500.0,0.00019866,2]
[351154572,1738365042040,-500.0,0.00019866,2]
[351154573,1738365042050,-486.91169362,0.00019866,2]
[351154574,1738365042061,-208.835011,0.00019866,2]
[351154575,1738365042071,-151.0,0.00019866,2]
[351154576,1738365042080,-151.0,0.00019866,2]
[351154577,1738365042089,-507.66367035,0.00019866,2]
[351154578,1738365042098,-500.0,0.00019866,2]
[351154579,1738365042108,-151.0,0.00019866,2]
[351154580,1738365042117,-272.79474,0.00019866,2]
[351154581,1738365042126,-500.0,0.00019866,2]
[351154582,1738365042135,-177.478866,0.00019866,2]
[351154583,1738365042144,-152.499423,0.00019866,2]
[351154584,1738365042154,-500.0,0.00019866,2]
[351154585,1738365042163,-151.0,0.00019866,2]
[351154586,1738365042173,-500.0,0.00019866,2]
[351154587,1738365042182,-177.478866,0.00019866,2]
[351154588,1738365042191,-500.0,0.00019866,2]
[351154589,1738365042200,-500.0,0.00019866,2]
[351154590,1738365042210,-500.0,0.00019866,2]
[351154591,1738365042219,-282.96111035,0.00019866,2]
[351154592,1738365042228,-211.666978,0.00019866,2]
[351154593,1738365042237,-211.666978,0.00019866,2]
[351154594,1738365042246,-530.4055608,0.00019866,2]
[351154595,1738365042255,-380.75862,0.00019866,2]
[351154596,1738365042265,-380.75862,0.00019866,2]
[351154597,1738365042274,-151.0,0.00019866,2]
[351154598,1738365042283,-151.0,0.00019866,2]
[351154599,1738365042292,-151.0,0.00019866,2]
[351154600,1738365042301,-151.0,0.00019866,2]
[351154601,1738365042425,-151.0,0.00019866,2]
[351154602,1738365042436,-151.0,0.00019866,2]
[351154603,1738365042445,-363.187827,0.00019866,2]
[351154604,1738365042454,-363.187827,0.00019866,2]
[351154605,1738365042464,-151.0,0.00019866,2]
[351154606,1738365042473,-537.50137355,0.00019866,2]
[351154607,1738365042482,-151.0,0.00019866,2]
[351154608,1738365042492,-500.0,0.00019866,2]
[351154609,1738365042501,-151.0,0.00019866,2]
[351154610,1738365042510,-151.0,0.00019866,2]
[351154611,1738365042520,-500.0,0.00019866,2]
[351154612,1738365042529,-343.508869,0.00019866,2]
[351154613,1738365042538,-343.508869,0.00019866,2]
[351154614,1738365042548,-151.0,0.00019866,2]
[351154615,1738365042557,-578.63,0.00019866,2]
[351154616,1738365042566,-151.0,0.00019866,2]
[351154617,1738365042575,-285.435621,0.00019867,2]
[351154618,1738365042584,-285.435621,0.00019867,2]
[351154619,1738365042594,-151.0,0.00019867,2]
[351154620,1738365042603,-211.666978,0.00019867,2]
[351154621,1738365042613,-211.666978,0.00019867,2]
[351154622,1738365042622,-500.0,0.00019868,2]
[351154623,1738365042632,-391.38939893,0.000199,2]
[351154624,1738365042642,-177.68250391,0.00019903,2]
[351154625,1738365042651,-500.0,0.00019934,2]
[351154626,1738365042660,-151.0,0.00019941,2]
[351154627,1738365042669,-151.0,0.00019941,2]
[351154628,1738365042678,-151.0,0.00019941,2]
[351154629,1738365042688,-151.0,0.00019941,2]
[351154630,1738365042698,-151.0,0.00019941,2]
[351154631,1738365042709,-721.500882,0.00019941,2]
[351154632,1738365042718,-721.500882,0.00019941,2]
[351154633,1738365042727,-151.0,0.00019941,2]
[351154634,1738365042736,-151.0,0.00019941,2]
[351154635,1738365042746,-177.478866,0.00019941,2]
[351154636,1738365042756,-151.0,0.00019941,2]
[351154637,1738365042765,-177.478866,0.00019941,2]
[351154638,1738365042775,-151.0,0.00019942,2]
[351154639,1738365042785,-151.0,0.00019942,2]
[351154640,1738365042795,-151.0,0.00019942,2]
[351154641,1738365042804,-151.0,0.00019942,2]
[351154642,1738365042814,-151.0,0.00019942,2]
[351154643,1738365042824,-151.0,0.00019942,2]
[351154644,1738365042833,-151.0,0.00019942,2]
[351154645,1738365042843,-266.322498,0.00019942,2]
[351154646,1738365042852,-295.554062,0.00019942,2]
[351154647,1738365042862,-295.554062,0.00019942,2]
[351154648,1738365042871,-151.0,0.00019942,2]
[351154649,1738365042881,-500.0,0.00019942,2]
[351154650,1738365042890,-985.99,0.00019942,2]
[351154651,1738365042899,-153.793,0.0001995,2]
[351154652,1738365042908,-500.0,0.00019954,2]
[351154653,1738365042918,-682.35,0.00019954,2]
[351154655,1738365042927,-497.84704338,0.00019954,2]
[351154656,1738365042937,-416.97,0.00019954,2]
[351154658,1738365042946,-500.0,0.00019954,2]
[351154660,1738365042955,-500.0,0.00019964,2]
[351154662,1738365042965,-1420.14,0.00019964,2]
[351154664,1738365042974,-500.0,0.00019964,2]
[351154666,1738365042985,-177.68250391,0.00019971,2]
[351154668,1738365042994,-187.782354,0.00019997,2]
[351154670,1738365043002,-151.0,0.00019997,2]
[351154673,1738365043012,-363.187827,0.00019997,2]
[351154676,1738365043022,-363.187827,0.00019997,2]
[351154679,1738365043031,-151.0,0.00019997,2]
[351154682,1738365043040,-151.0,0.00019997,2]
[351154685,1738365043050,-500.0,0.00019997,2]
[351154687,1738365043059,-343.508869,0.00019997,2]
[351154689,1738365043069,-343.508869,0.00019997,2]
[351154691,1738365043078,-296.766994,0.00019997,2]
[351154693,1738365043087,-151.0,0.00019997,2]
[351154695,1738365043097,-151.0,0.00019998,2]
[351154696,1738365043106,-151.0,0.00019998,2]
[351154698,1738365043116,-303.575464,0.00019998,2]
[351154700,1738365043125,-303.575464,0.00019998,2]
[351154702,1738365043135,-380.75862,0.00019998,2]
[351154704,1738365043144,-380.75862,0.00019998,2]
[351154707,1738365043153,-151.0,0.00019998,2]
[351154710,1738365043163,-151.0,0.00019998,2]
[351154712,1738365043172,-151.0,0.00019998,2]
[351154715,1738365043183,-151.0,0.00019998,2]
[351154717,1738365043192,-158.564945,0.00019998,2]
[351154719,1738365043202,-578.63,0.00019998,2]
[351154720,1738365043211,-151.0,0.00019999,2]
[351154722,1738365043220,-151.0,0.00019999,2]
[351154723,1738365043230,-151.0,0.00019999,2]
[351154724,1738365043240,-500.0,0.00019999,2]
[351154725,1738365043249,-160.0,0.0002,2]
[351154727,1738365043259,-830.3,0.0002,2]
[351154728,1738365043268,-1500.0,0.0002,2]
[351154729,1738365043277,-500.0,0.0002,7]
[351154730,1738365043287,-351.96,0.0002,7]
[351154731,1738365043296,-151.0,0.0002,2]
[351154732,1738365043306,-151.0,0.0002,2]
[351154734,1738365043315,-12696.0,0.0002,2]
[351154735,1738365043324,-151.0,0.0002,2]
[351154737,1738365043334,-151.0,0.0002,2]
[351154738,1738365043343,-151.0,0.0002,2]
[351154739,1738365043352,-151.0,0.0002,2]
[351154740,1738365043362,-721.500882,0.0002,2]
[351154742,1738365043371,-721.500882,0.0002,2]
[351154743,1738365043380,-316.0,0.0002,8]
[351154744,1738365043390,-500.0,0.0002,2]
[351154745,1738365043399,-235.51157637,0.0002,2]
[351154746,1738365043409,-151.0,0.0002,2]
[351154747,1738365043418,-151.0,0.0002,2]
[351154748,1738365043428,-151.0,0.0002,2]
[351154749,1738365043437,-177.478866,0.0002,2]
[351154750,1738365043448,-151.0,0.0002,2]
[351154751,1738365043458,-177.478866,0.0002,2]
[351154752,1738365043468,-211.666978,0.0002,2]
[351154753,1738365043478,-211.666978,0.0002,2]
[351154754,1738365043487,-285.435621,0.00020001,2]
[351154755,1738365043496,-285.435621,0.00020001,2]
[351154756,1738365043506,-500.0,0.00020001,2]
[351154757,1738365043515,-500.0,0.00020001,2]
[351154758,1738365043525,-500.0,0.00020001,2]
[351154759,1738365043535,-501.66271649,0.00020001,2]
[351154760,1738365043544,-500.0,0.00020001,2]
[351154761,1738365043553,-500.0,0.00020001,2]
[351154762,1738365043563,-510.08297674,0.00020001,2]
[351154763,1738365043573,-500.0,0.00020001,2]
[351154764,1738365043582,-500.0,0.00020001,2]
[351154766,1738365043591,-403.30161415,0.00020001,2]
[351154767,1738365043601,-500.0,0.00020001,2]
[351154768,1738365043610,-500.0,0.00020001,2]
[351154769,1738365043620,-500.0,0.00020001,2]
[351154770,1738365043629,-500.0,0.00020001,2]
[351154771,1738365043639,-500.0,0.00020001,2]
[351154772,1738365043648,-500.0,0.00020001,2]
[351154773,1738365043657,-500.0,0.00020001,2]
[351154774,1738365043667,-500.0,0.00020001,2]
[351154775,1738365043676,-500.0,0.00020001,2]
[351154776,1738365043685,-500.0,0.00020001,2]
[351154777,1738365043696,-500.0,0.00020001,2]
[351154778,1738365043712,-500.0,0.00020001,2]
[351154779,1738365043722,-500.0,0.00020001,2]
[351154780,1738365043731,-380.75862,0.00020001,2]
[351154781,1738365043740,-500.0,0.00020001,2]
[351154782,1738365043751,-380.75862,0.00020001,2]
[351154783,1738365043760,-500.0,0.00020001,2]
[351154784,1738365043769,-151.0,0.00020001,2]
[351154785,1738365043779,-151.0,0.00020001,2]
[351154786,1738365043789,-2452.21,0.00020001,2]
[351154787,1738365043799,-1517.45,0.00020001,2]
[351154788,1738365043808,-151.0,0.00020001,2]
[351154789,1738365043817,-151.0,0.00020001,2]
[351154790,1738365043826,-151.0,0.00020001,2]
[351154791,1738365043836,-500.0,0.00020001,2]
[351154792,1738365043845,-500.0,0.00020001,2]
[351154793,1738365043854,-500.0,0.00020001,2]
[351154794,1738365043863,-500.0,0.00020001,2]
[351154795,1738365043873,-500.0,0.00020001,2]
[351154796,1738365043883,-489.9791227,0.00020001,2]
[351154797,1738365043893,-151.0,0.00020001,2]
[351154798,1738365043902,-363.187827,0.00020001,2]
[351154799,1738365043912,-363.187827,0.00020001,2]
[351154800,1738365043921,-500.0,0.00020001,2]
[351154801,1738365043930,-500.0,0.00020001,2]
[351154802,1738365043939,-363.187827,0.00020001,2]
[351154803,1738365043949,-151.0,0.00020001,2]
[351154804,1738365043958,-151.0,0.00020001,2]
[351154805,1738365043967,-363.187827,0.00020001,2]
[351154806,1738365043977,-500.0,0.00020001,2]
[351154807,1738365043986,-500.0,0.00020001,2]
[351154808,1738365043995,-556.95,0.00020001,2]
[351154809,1738365044005,-500.0,0.00020001,2]
[351154810,1738365044014,-266.11,0.00020001,2]
[351154811,1738365044024,-500.0,0.00020001,2]
[351154812,1738365044032,-500.0,0.00020001,2]
[351154813,1738365044042,-500.0,0.00020001,2]
[351154814,1738365044051,-1583.95,0.00020001,2]
[351154815,1738365044061,-500.0,0.00020001,2]
[351154816,1738365044070,-500.0,0.00020001,2]
[351154817,1738365044080,-500.0,0.00020001,2]
[351154818,1738365044089,-504.78,0.00020001,2]
[351154819,1738365044099,-500.0,0.00020001,2]
[351154820,1738365044108,-500.0,0.00020001,2]
[351154821,1738365044117,-500.0,0.00020001,2]
[351154822,1738365044127,-500.0,0.00020001,2]
[351154823,1738365044136,-1758.76,0.00020001,2]
[351154824,1738365044145,-1180.11,0.00020001,2]
[351154825,1738365044155,-500.0,0.00020001,2]
[351154826,1738365044165,-1994.32,0.00020001,2]
[351154827,1738365044175,-500.0,0.00020001,2]
[351154828,1738365044185,-500.0,0.00020001,2]
[351154829,1738365044195,-151.0,0.00020001,2]
[351154830,1738365044204,-151.0,0.00020001,2]
[351154831,1738365044214,-500.0,0.00020001,2]
[351154832,1738365044224,-500.0,0.00020001,2]
[351154833,1738365044234,-500.0,0.00020001,2]
[351154834,1738365044245,-500.0,0.00020001,2]
[351154835,1738365044255,-500.0,0.00020001,2]
[351154836,1738365044265,-500.0,0.00020001,2]
[351154837,1738365044274,-500.0,0.00020001,2]
[351154838,1738365044283,-500.0,0.00020001,2]
[351154839,1738365044293,-500.0,0.00020001,2]
[351154840,1738365044302,-500.0,0.00020001,2]
[351154841,1738365044313,-350.0,0.00020001,2]
[351154842,1738365044322,-343.508869,0.00020001,2]
[351154843,1738365044331,-343.508869,0.00020001,2]
[351154844,1738365044341,-1014.41,0.00020001,2]
[351154845,1738365044350,-645.25699983,0.00020001,2]
[351154846,1738365044361,-343.508869,0.00020001,2]
[351154847,1738365044370,-343.508869,0.00020001,2]
[351154848,1738365044380,-876.78,0.00020001,2]
[351154849,1738365044390,-516.16,0.00020001,2]
[351154850,1738365044399,-500.0,0.00020001,2]
[351154851,1738365044409,-578.63,0.00020001,2]
[351154852,1738365044418,-578.63,0.00020001,2]
[351154853,1738365044428,-151.0,0.00020001,2]
[351154854,1738365044437,-151.0,0.00020001,2]
[351154855,1738365044447,-11272.7790999,0.00020001,5]
[351154856,1738365044457,-88970.7488301,0.00020002,5]
[351154857,1738365044466,-151.0,0.00020002,2]
[351154858,1738365044476,-151.0,0.00020002,2]
[351154859,1738365044485,-303.575464,0.00020002,2]
[351154860,1738365044495,-303.575464,0.00020002,2]
[351154861,1738365044504,-303.575464,0.00020002,2]
[351154862,1738365044514,-303.575464,0.00020002,2]
[351154863,1738365044524,-285.435621,0.00020002,2]
[351154864,1738365044533,-285.435621,0.00020002,2]
[351154865,1738365044543,-151.0,0.00020002,2]
[351154866,1738365044552,-176.222839,0.00020002,2]
[351154867,1738365044562,-151.0,0.00020002,2]
[351154868,1738365044571,-151.0,0.00020002,2]
[351154869,1738365044581,-167.226135,0.00020002,2]
[351154870,1738365044591,-151.0,0.00020002,2]
[351154871,1738365044600,-151.0,0.00020002,2]
[351154872,1738365044609,-151.0,0.00020002,2]
[351154873,1738365044619,-151.0,0.00020002,2]
[351154874,1738365044628,-500.0,0.00020002,2]
[351154875,1738365044638,-500.0,0.00020002,2]
[351154876,1738365044647,-151.0,0.00020002,2]
[351154877,1738365044656,-151.0,0.00020002,2]
[351154878,1738365044665,-558.47290326,0.00020002,2]
[351154879,1738365044675,-295.554062,0.00020002,2]
[351154880,1738365044684,-295.554062,0.00020002,2]
[351154881,1738365044694,-295.554062,0.00020002,2]
[351154882,1738365044708,-295.554062,0.00020002,2]
[351154883,1738365044717,-500.0,0.00020002,2]
[351154884,1738365044727,-500.0,0.00020002,2]
[351154885,1738365044737,-500.0,0.00020002,2]
[351154886,1738365044747,-500.0,0.00020002,2]
[351154887,1738365044756,-500.0,0.00020002,2]
[351154888,1738365044765,-500.0,0.00020002,2]
[351154889,1738365044870,-545.83214331,0.00020002,2]
[351154890,1738365044880,-500.0,0.00020002,2]
[351154891,1738365044889,-500.0,0.00020002,2]
[351154892,1738365044898,-602.52222011,0.00020002,2]